Cogmind - Beta 17.1 @@@ ROGUE MODE // 2026.09.01 @ 23:44:24 Player: SnailSD Result: Destroyed by S-10 Pest with Light Assault Rifle Performance ------------- Evolutions (0) 0 Regions Visited (2) 400 Robots Destroyed (19) 95 Value Destroyed (297) 297 Prototype IDs (0) 0 Alien Tech Used (0) 0 Bonus (32) 32 TOTAL SCORE: 824 Bonus ------- Follower Combat Kills 32 Cogmind --------- Core Integrity 0/250 Matter 107/300 Energy 88/100 System Corruption 2% Temperature Cool (0) Movement Rolling (200) Ox8 Location -10/Mines Parts ------- > --- POWER (1) -------- (None) > --- PROPULSION (2) --- Wheel > --- UTILITY (2) ------ Huge Storage Unit > --- WEAPON (2) ------- Light Assault Rifle Light Assault Rifle > --- INVENTORY (25) --- Light Treads Light Treads Light Treads Light Treads Light Treads Light Treads Improved Heat Sink Targeting Computer Targeting Computer Targeting Computer Light Armor Plating Light Armor Plating Small Laser Light Assault Rifle Grenade Launcher Rocket Launcher Hammer Peak State ------------ > --- POWER ------------ Light Nuclear Core > --- PROPULSION ------- Wheel Wheel > --- UTILITY ---------- Improved Heat Sink Huge Storage Unit > --- WEAPON ----------- Grenade Launcher Rocket Launcher > --- INVENTORY -------- Light Treads Light Treads Light Treads Light Treads Light Treads Light Treads Improved Heat Sink Medium Matter Pod Targeting Computer Targeting Computer Targeting Computer Light Armor Plating Light Armor Plating Small Laser Assault Rifle Light Assault Rifle Light Assault Rifle Light Assault Rifle Hammer [Rating: 14] Favorites ----------- Power Ion Engine Engine Ion Engine Power Core Light Nuclear Core Propulsion Compact Wheel Treads Light Treads Wheel Compact Wheel Utility Seismic Detector Device Seismic Detector Storage Huge Storage Unit Weapon Assault Rifle Ballistic Gun Assault Rifle Launcher Grenade Launcher Build | -11 -10 -10 ------- Run | Yrd Mat Min Slots Evolved . | . . . Power . | . . . Propulsion . | . . . Utility . | . . . Weapon . | . . . Parts Attached 22 | 7 5 10 Power 3 | 1 . 2 Engine 1 | 1 . . Core 2 | . . 2 Reactor . | . . . Propulsion 6 | 2 2 2 Treads 2 | 2 . . Leg . | . . . Wheel 4 | . 2 2 Hover . | . . . Flight . | . . . Utility 5 | 2 2 1 Device 2 | 1 . 1 Storage 3 | 1 2 . Processor . | . . . Hackware . | . . . Protection . | . . . Artifact . | . . . Weapon 8 | 2 1 5 Energy Gun . | . . . Energy Cannon . | . . . Ballistic Gun 6 | 2 1 3 Ballistic Cannon . | . . . Launcher 2 | . . 2 Special Weapon . | . . . Impact Weapon . | . . . Slashing Weapon . | . . . Piercing Weapon . | . . . Special Melee Weapon . | . . . Unidentified Prototypes . | . . . Parts Lost 8 | . . 8 Power 2 | . . 2 Propulsion 3 | . . 3 Utility 2 | . . 2 Weapon 1 | . . 1 Highest Loss Streak 4 | . . 4 To Critical Strikes . | . . . Average Backups 16 | 5 11 22 Power 1 | . 1 1 Propulsion 4 | 3 3 5 Utility 6 | . 4 9 Weapon 3 | . 1 5 Tool/Special . | . . . Unused Backups 36 | 1 9 26 Power 1 | . . 1 Propulsion 9 | 1 3 5 Utility 22 | . 5 17 Weapon 3 | . 1 2 Tool/Special 1 | . . 1 Average Slot Usage (%) 99 | . 100 98 Engine 9 | . 14 5 Core 4 | . . 8 Treads 11 | . 25 . Wheel 16 | . 2 27 Device 13 | . 14 13 Storage 14 | . 14 14 Ballistic Gun 27 | . 28 26 Peak Build Rating 14 | 7 9 14 Average Rating 9 | 6 7 11 On Entrance 5 | . 7 9 Avg Prop Armor Cover (%) . | . . . Naked Turns . | . . . Heaviest Build 93 | 14 90 93 Greatest Support 40 | 40 40 32 Greatest Overweight (x) 4 | . 2 4 Average Overweight (x) 1 | . . 2 Largest Inventory Capacity 25 | 8 25 25 Average Capacity 18 | 7 13 25 Most Carried 25 | 8 19 25 Average Carried 16 | 5 11 22 Final Capacity 25 | 8 25 25 Final Carried 19 | 8 19 17 Class Distribution -------------------- 64% | Mutant 35% | Scavenger-Mutant Dominant Class ---------------- Mutant | -10/Materials Scavenger-Mutant | -10/Mines Resources | -11 -10 -10 ----------- Run | Yrd Mat Min Matter Collected 1102 | 318 313 471 Remotely . | . . . Salvage Created 642 | 136 227 279 Parts 45 | 10 16 19 Haulers Intercepted 2 | . 2 . Recyclers Shooed . | . . . Parts Field Recycled . | . . . Retrieved Matter . | . . . Parts Self-Destructed . | . . . Prevented . | . . . Parts Restored . | . . . Kills | -11 -10 -10 ------- Run | Yrd Mat Min Combat Hostiles Destroyed 24 | . 1 23 Guns 9 | . 1 8 AOE 15 | . . 15 Classes Destroyed 9 | 3 4 2 Worker 3 | 2 . 1 Builder 1 | . 1 . Tunneler 2 | 1 1 . Hauler 2 | . 2 . Recycler 1 | 1 . . Watcher 1 | . 1 . Swarmer 4 | . . 4 Grunt 5 | . 1 4 Assembled 15 | . . 15 Best Kill Streak 8 | 2 2 8 Combat Bots Only 8 | . 1 8 Max Kills in Single Turn 4 | 1 1 4 Gunslinging . | . . . Exploded 4 | . . 4 Melee . | . . . Uniques/NPCs Destroyed . | . . . Combat | -11 -10 -10 -------- Run | Yrd Mat Min Hostile Shots Fired 91 | . 2 89 Missed 21 | . . 21 Hits 70 | . 2 68 Melee 3 | . . 3 Projectile 67 | . 2 65 Critical Strikes 1 | . . 1 Part Disruptions 1 | . . 1 Damage Taken 916 | . 21 895 Core 257 | . . 257 Absorbed by Shields . | . . . Core Remaining (%) 100 | 100 . . Volleys Fired 77 | 12 18 47 Largest 2 | 2 2 2 Hottest 63 | 40 40 63 Shots Fired 148 | 24 36 88 Gun 136 | 24 36 76 Cannon . | . . . Launcher 12 | . . 12 Special . | . . . Kinetic 136 | 24 36 76 Thermal . | . . . Explosive 12 | . . 12 Electromagnetic . | . . . Robot Hit Streak 4 | 3 4 4 Robot Miss Streak 8 | 3 3 8 Penetration Max . | . . . Secondary Targets 1 | . . 1 Max Gunslinging Chain 1 | . . 1 Shots Hit Robots 71 | 12 17 42 Core Hits 60 | 6 10 44 Critical Kills . | . . . Critical Parts Destroyed . | . . . Critical Strikes . | . . . Melee Attacks . | . . . Impact . | . . . Slashing . | . . . Piercing . | . . . Sneak Attacks . | . . . Combat Hostiles . | . . . Follow-up Attacks . | . . . Damage Inflicted 1880 | 135 235 1510 Guns 887 | 135 229 523 Cannons . | . . . Explosions 987 | . . 987 Melee . | . . . Ramming 6 | . 6 . Kinetic 887 | 135 229 523 Thermal . | . . . Explosive 987 | . . 987 Electromagnetic . | . . . Impact . | . . . Slashing . | . . . Piercing . | . . . Highest Corruption 2 | . . 2 Average Corruption 2 | . . 2 Corruption Purged . | . . . Corruption Blocked . | . . . Effects 1 | . . 1 Energy Discharges 1 | . . 1 Overload Shots . | . . . Overflow Damage 86 | . . 86 Projectiles . | . . . Explosions 86 | . . 86 Melee . | . . . Knockbacks . | . . . Impact . | . . . Kinetic . | . . . Secondary . | . . . Self-Inflicted Damage 118 | . . 118 Shots 5 | . . 5 Rammed 2 | . 2 . Targets Rammed 2 | . 2 . Kicked . | . . . Crushed . | . . . Highest Temperature 27 | . . 27 Average Temperature 8 | . . 8 Received Heat Transfer 268 | . 12 256 Siege Activations . | . . . Martial Activations . | . . . Shielding Activations . | . . . Robots Disrupted . | . . . Combat Hostiles . | . . . Robots Corrupted . | . . . Combat Hostiles . | . . . Parts Fried . | . . . Impact Corruptions . | . . . Robots Melted . | . . . Combat Hostiles . | . . . Parts Melted . | . . . Heat Transferred . | . . . Parts Sabotaged . | . . . Parts Stolen . | . . . Parts Stripped . | . . . Power Chain Reactions . | . . . Alert | -11 -10 -10 ------- Run | Yrd Mat Min Maximum Alert Level . | . . . Low Security (%) 100 | 100 100 100 Level 1 . | . . . Level 2 . | . . . Level 3 . | . . . Level 4 . | . . . Level 5 . | . . . High Security . | . . . Max Security . | . . . Peak Influence 71 | 5 20 71 Initial 3 | . 3 . Average 7 | . 1 13 Influence Increases 420 | 20 68 332 Destroy 0b10 Robot/C 220 | . 20 200 Destroy 0b10 Robot/NC 50 | 20 25 5 Destroy Leader 56 | . 6 50 Allied During Kill 7 | . . 7 Successful Hack 16 | . 16 . Destroy Structure 71 | . 1 70 Influence Decreases 373 | 15 73 285 Entered New Map 2 | . 2 . Time Decay 251 | 15 71 165 Lost Part 80 | . . 80 Lost Ally 40 | . . 40 Squads Dispatched . | . . . Investigation . | . . . Extermination . | . . . Reinforcement . | . . . Assault . | . . . Garrison . | . . . Intercept . | . . . Searches Triggered . | . . . Construction Impeded . | . . . Haulers Reinforced . | . . . Active Scanning Responses . | . . . Cargo Convoy Interrupts . | . . . Stealth | -11 -10 -10 --------- Run | Yrd Mat Min Distress Signals . | . . . Communications Jammed . | . . . Distress Signals . | . . . Times Spotted 31 | . 3 28 Peak Tracking Total 20 | . 1 20 Tactical Retreats 1 | . . 1 Traps | -11 -10 -10 ------- Run | Yrd Mat Min Traps Triggered . | . . . Indirectly . | . . . Trap Hack Attempts . | . . . Triggered . | . . . Disarmed . | . . . Reprogrammed . | . . . Reused . | . . . Traps Extracted . | . . . Installed . | . . . Triggered . | . . . Machines | -11 -10 -10 ---------- Run | Yrd Mat Min Machines Disabled . | . . . Max in Single Turn . | . . . Machines Repaired . | . . . Machines Dismantled . | . . . Machines Sabotaged . | . . . Overloaded Fab Kills . | . . . Hacking | -11 -10 -10 --------- Run | Yrd Mat Min Machines Accessed 4 | . 3 1 Terminals 3 | . 2 1 Fabricators . | . . . Repair Stations . | . . . Recycling Units 1 | . 1 . Scanalyzers . | . . . Garrison Access . | . . . Total Hacks 11 | . 9 2 Successful 6 | . 5 1 Failed 5 | . 4 1 Catastrophic 1 | . . 1 Database Lockouts . | . . . Manual 6 | . 5 1 Terminals 8 | . 6 2 Fabricators . | . . . Repair Stations . | . . . Recycling Units 3 | . 3 . Scanalyzers . | . . . Garrison Access . | . . . Terminal Hacks 4 | . 3 1 Robot Analysis 3 | . 3 . Zone Layout 1 | . . 1 Fabricator Hacks . | . . . Repair Station Hacks . | . . . Recycling Unit Hacks 1 | . 1 . Retrieve Components 1 | . 1 . Scanalyzer . | . . . Garrison Access Hacks . | . . . Unauthorized Hacks 1 | . 1 . Terminals 1 | . 1 . Botnet 1 | . 1 . Fabricators . | . . . Repair Stations . | . . . Recycling Units . | . . . Scanalyzers . | . . . Garrison Access . | . . . Data Cores Recovered . | . . . Used . | . . . Hacking Detections 4 | . 3 1 Full Trace Events . | . . . Feedback Events . | . . . Feedback Blocked . | . . . Robot Schematics Acquired . | . . . Robots Built . | . . . Authchips . | . . . Time . | . . . Total Robot Build Rating . | . . . Part Schematics Acquired . | . . . Parts Built . | . . . Authchips . | . . . Time . | . . . Total Part Build Rating . | . . . Part Studies Acquired . | . . . Parts Repaired . | . . . Time . | . . . Parts Recycled . | . . . Recycled Matter . | . . . Retrieved Matter . | . . . Retrieved Components 10 | . 10 . Parts Scanalyzed . | . . . Part Schematics Acquired . | . . . Parts Damaged . | . . . Bothacking | -11 -10 -10 ------------ Run | Yrd Mat Min Used RIF Installer . | . . . Robots Hacked . | . . . Non-combat . | . . . Combat . | . . . Robot Hacks Applied . | . . . Relay Couplers Released . | . . . Fabnet Peak Effective % . | . . . Robots Rewired . | . . . Allies Hacked . | . . . Hacks Repelled . | . . . Allies | -11 -10 -10 -------- Run | Yrd Mat Min Total Allies 3 | . . 3 Largest Group 3 | . . 3 Highest-Rated Group 40 | . . 40 Highest-Rated Ally 16 | . . 16 Total Orders . | . . . Ally Attacks 18 | . . 18 Total Damage 168 | . . 168 Kills 2 | . . 2 Allies Corrupted . | . . . Allies Melted . | . . . Intel | -11 -10 -10 ------- Run | Yrd Mat Min Active Infowar (turns) 1559 | 146 660 753 Seismic 1559 | 146 660 753 Robot Analysis Total 3 | . 3 . Derelict Logs Recovered 2 | . . 2 Drone Launches . | . . . Drone Recoveries . | . . . Exploration | -11 -10 -10 ------------- Run | Yrd Mat Min Turns Passed 1714 | 194 660 860 Spaces Moved 942 | 89 364 489 Core 1 | 1 . . Treads 418 | 88 330 . Legs . | . . . Wheels 523 | . 34 489 Hover . | . . . Flight . | . . . Fastest Speed 50 | 50 100 130 Average Speed 143 | 158 156 130 Slowest Speed 160 | 160 160 140 Overloaded Moves . | . . . Propulsion Burnouts . | . . . Robots Hopped . | . . . Potential Cave-ins . | . . . Cave-ins Triggered . | . . . Exploration Rate (%) 42 | 5 47 76 Regions Visited 2 Branch Regions 1 Pre-discovered Areas 1 | . . 1 Known Exits Taken . | . . . Unknown Exits Taken 2 | 1 1 . Scrap Searched 1 | . . 1 Spaces Dug . | . . . Terrain Destroyed 105 | . . 105 Melee . | . . . Projectile . | . . . AOE 105 | . . 105 Terrain Rammed . | . . . Walls Destroyed . | . . . Machines Disabled . | . . . Actions | -11 -10 -10 --------- Run | Yrd Mat Min Total 1171 | 117 422 632 Wait 38 | . . 38 Move 940 | 88 363 489 Hop . | . . . Pick Up 49 | 9 21 19 Fast Attach 7 | 7 . . Attach 11 | . 2 9 Detach 2 | . . 2 Swap 13 | . 3 10 Drop 32 | 1 13 18 Fire 77 | 12 18 47 Melee . | . . . Ram . | . . . Kick . | . . . Crush 2 | . 2 . Escape Stasis . | . . . Rewire . | . . . Trap . | . . . Miscellaneous . | . . . Route ------- -11/Scrapyard -10/Materials (discovered 2 exits: [*Mat] / *Min) -10/Mines (discovered 1 exit: [*Mat]) History --------- Turn | Location | Event 36 | -11/Scrapyard | Discovered new exit (range 16) 195 | -11/Scrapyard | Entered Materials 300 | -10/Materials | Build established: Mutant 414 | -10/Materials | Discovered new exit (range 4) 740 | -10/Materials | Discovered new exit (range 15) 855 | -10/Materials | Entered Mines 866 | -10/Mines | Met a Derelict bent on vengeance 1020 | -10/Mines | Learned location of Storage (-8) 1044 | -10/Mines | Joined a pair of Derelicts in attacking an 0b10 outpost 1275 | -10/Mines | Assisted by bots powering up and referring to "LRC-V3" 1303 | -10/Mines | Received a Rocket Launcher from a helpful Derelict 1366 | -10/Mines | Build established: Scavenger-Mutant 1556 | -10/Mines | Lost 3 allies 1581 | -10/Mines | Learned Materials non-interactive machine intel 1585 | -10/Mines | Assembled infested the area 1610 | -10/Mines | Core integrity fell below 50% 1637 | -10/Mines | Destroyed 8 combat bots 1645 | -10/Mines | Lost 4 parts (1p2n1u) 1693 | -10/Mines | Discovered new exit (range 7) 1697 | -10/Mines | Core integrity fell below 20% 1715 | -10/Mines | Destroyed by S-10 Pest with Light Assault Rifle Last Messages --------------- 01683_ as-76032 destroyed. 01683_ as-48058 destroyed. [Achievement: Exterminator] 01691_ The unstable cave ceiling collapses. 01693_ EXIT=FOUND 01695_ Dropped Med. Matter Pod. 01697_ The unstable cave ceiling collapses. 01697_ Extracted 100 matter. 01700_ The unstable cave ceiling collapses. 01702_ Lgt. Nuclear Core destroyed. 01704_ Destroyed Flight Unit. 01705_ The unstable cave ceiling collapses. 01706_ Wheel destroyed. 01706_ S-10 Pest destroyed. 01706_ Switching to secondary target: S-10 Pest. 01709_ Assault Rifle destroyed. 01710_ The unstable cave ceiling collapses. 01713_ Imp. Heat Sink destroyed. 01714_ The unstable cave ceiling collapses. 01714_ S-10 Pest destroyed. Map ----- +----------------------------------------------------+ | | | | | | | | | | | | | ???????????????????????????????????? | | ??????????####????####?????????????? | | ?????????## ###### #####??#####??? | | ????????## #### #### | | ????????# | | ????????# | | ????????## #### | | ?????????# ## [ ###??? | | ?????????# ###### ###### | | ??######## #????### # """ " | | ??# # # #??????# # """ " | | ??# # # #??????# # # """ " | | ??# #??????# T | | ??# ####??????### =#### | | ??# ##?#####?????## !%##?# | | ??## #### ####???# ### | | ??### #### #?? ######=# | | ??## ## ## # #????#=# | | ??# % #????# # | | ?# [=@ #????# | | ?# < =[%s# #????# | | ?## ## % ##### ##%*#????### | | ??## ##### #####????????#*[#??????? | | ???####??? #????????????#= #??????? | | ?????????? #????????????#[ #??????? | | ????????? < ?????????####==##?????? | | ????????? #????????## ##????? | | ???????? #????????# #????? | | ???????? #????????# *[= #???## | | ???????# ?????????## %!%=##???# | | ???????#####??????????## =!*%##???# | | ???????????????????????### * #???# | | ?????????????????????????## ##??# | | ??????????????????????????# !%#??# | | ??????????????????????????# *####/ | | ??????????????????# #### ##% | | ??????????????????# *%[ | | ?????????????????# ! ! | | ????????????????# ### ## | | ????????????????# ????# ?# | | ???????????????????????# | | ???????????????????????##### | | ???????????????????????????### | | ?????????????????????????????## # | +----------------------------------------------------+ Best States ------------- Heat Dissipation 39 Energy Generation 14 Energy Capacity 250 Matter Stores 300 Matter Capacity 300 Sight Range 16 Terrain Scan Density 10 Evasion (%) 40 Recoil Reduction 2 Item Schematics ----------------- None Robot Schematics ------------------ None Fabricated ------------ Nothing Repaired ---------- Nothing Studied --------- None Alien Tech Used ----------------- None Achievements -------------- Exterminator Challenges ------------ None Game ------ Seed MappingRingFrame Manual? 0 Play Time 00:22:38 Cumulative 71.5 hours Start 2026.09.01 @ 23:23:12 End 2026.09.01 @ 23:44:24 Sessions 1 Manual Loads 0 Difficulty Rogue Special Mode None Game No. 121 Rogue 121 Adventurer 0 Explorer 0 Win Type - Total 1 Types 1/0/0/0/0/0/0/0/0/0 Lore% 43 Gallery% 40 Achievement% 31 Wizard Run 0 Options --------- Layout 1 ASCII 1 Keyboard 0 Movement Numpad Keybinds 0 Fullscreen 2 Font 24/Smallcaps Map View 50x35 Zoom Use 0% Tactical HUD 1 Map Filters NONE Filters NONE Steam 1 RUN: a0f1785b-63f5-4057-bde6-e6381d22c1a5